[Event "Titled Tuesday Blitz April 12 Early 2022"]
[White "Maevsky, Nikolay"]
[Black "Derjabin, Ilja"]
[WhiteFideId "4198220"]
[BlackFideId "14104768"]
[WhiteElo "2126"]
[BlackElo "2341"]
[Result "0-1"]
[Round "11"]
[TimeControl "180+1"]
[Date "2022.04.12"]
[WhiteClock "0:00:03"]
[BlackClock "0:00:03"]

1. d4 {[%clk 0:02:49]}  Nf6 {[%clk 0:02:53]} 2. Nf3 {[%clk 0:02:50]}  c5 {[%clk 0:02:40]} 3. c3 {[%clk 0:02:49]}  cxd4 {[%clk 0:02:35]} 4. cxd4 {[%clk 0:02:49]}  d5 {[%clk 0:02:34]} 5. Nc3 {[%clk 0:02:50]}  Nc6 {[%clk 0:02:34]} 6. Bf4 {[%clk 0:02:50]}  e6 {[%clk 0:02:32]} 7. e3 {[%clk 0:02:50]}  Bd6 {[%clk 0:02:30]} 8. Bg3 {[%clk 0:02:38]}  Bxg3 {[%clk 0:02:27]} 9. hxg3 {[%clk 0:02:38]}  O-O {[%clk 0:02:27]} 10. Bd3 {[%clk 0:02:38]}  Qb6 {[%clk 0:02:27]} 11. Qe2 {[%clk 0:02:27]}  Bd7 {[%clk 0:02:24]} 12. Rc1 {[%clk 0:02:26]}  Rac8 {[%clk 0:02:21]} 13. Bb1 {[%clk 0:02:25]}  h6 {[%clk 0:02:14]} 14. Kf1 {[%clk 0:02:03]}  Be8 {[%clk 0:02:02]} 15. Kg1 {[%clk 0:01:58]}  a6 {[%clk 0:01:53]} 16. Ne5 {[%clk 0:01:23]}  Nxe5 {[%clk 0:01:44]} 17. dxe5 {[%clk 0:01:23]}  Ne4 {[%clk 0:01:45]} 18. Bxe4 {[%clk 0:01:22]}  dxe4 {[%clk 0:01:44]} 19. Rh4 {[%clk 0:01:19]}  Bb5 {[%clk 0:01:38]} 20. Qg4 {[%clk 0:01:15]}  Bd3 {[%clk 0:01:34]} 21. Re1 {[%clk 0:00:31]}  Qxb2 {[%clk 0:01:26]} 22. Nxe4 {[%clk 0:00:31]}  Bxe4 {[%clk 0:01:26]} 23. Qxe4 {[%clk 0:00:30]}  b5 {[%clk 0:01:13]} 24. a4 {[%clk 0:00:19]}  Rc4 {[%clk 0:01:10]} 25. Qb1 {[%clk 0:00:19]}  Qxb1 {[%clk 0:01:07]} 26. Rxb1 {[%clk 0:00:20]}  Rxa4 {[%clk 0:01:06]} 27. Rxa4 {[%clk 0:00:20]}  bxa4 {[%clk 0:01:06]} 28. Ra1 {[%clk 0:00:20]}  Ra8 {[%clk 0:01:03]} 29. Rxa4 {[%clk 0:00:19]}  f6 {[%clk 0:01:02]} 30. exf6 {[%clk 0:00:18]}  gxf6 {[%clk 0:01:02]} 31. g4 {[%clk 0:00:19]}  Kf7 {[%clk 0:01:02]} 32. f4 {[%clk 0:00:19]}  Ke7 {[%clk 0:01:02]} 33. Ra5 {[%clk 0:00:19]}  Kd6 {[%clk 0:01:02]} 34. Kf2 {[%clk 0:00:18]}  Kc6 {[%clk 0:01:02]} 35. Ke2 {[%clk 0:00:19]}  Kb6 {[%clk 0:01:02]} 36. Rh5 {[%clk 0:00:19]}  a5 {[%clk 0:01:02]} 37. Kd2 {[%clk 0:00:19]}  Rc8 {[%clk 0:00:56]} 38. Rxh6 {[%clk 0:00:18]}  a4 {[%clk 0:00:56]} 39. Rxf6 {[%clk 0:00:16]}  a3 {[%clk 0:00:56]} 40. Rxe6+ {[%clk 0:00:16]}  Kb5 {[%clk 0:00:57]} 41. Re7 {[%clk 0:00:13]}  Ra8 {[%clk 0:00:52]} 42. Rb7+ {[%clk 0:00:13]}  Kc4 {[%clk 0:00:52]} 43. Rb1 {[%clk 0:00:11]}  a2 {[%clk 0:00:52]} 44. Ra1 {[%clk 0:00:11]}  Kb3 {[%clk 0:00:48]} 45. g5 {[%clk 0:00:11]}  Rd8+ {[%clk 0:00:44]} 46. Ke2 {[%clk 0:00:10]}  Kb2 {[%clk 0:00:43]} 47. Rxa2+ {[%clk 0:00:09]}  Kxa2 {[%clk 0:00:44]} 48. g6 {[%clk 0:00:09]}  Kb3 {[%clk 0:00:39]} 49. f5 {[%clk 0:00:09]}  Rg8 {[%clk 0:00:39]} 50. e4 {[%clk 0:00:09]}  Kc4 {[%clk 0:00:39]} 51. Ke3 {[%clk 0:00:09]}  Kc5 {[%clk 0:00:31]} 52. e5 {[%clk 0:00:09]}  Kd5 {[%clk 0:00:30]} 53. Kf4 {[%clk 0:00:10]}  Rg7 {[%clk 0:00:29]} 54. g4 {[%clk 0:00:10]}  Rg8 {[%clk 0:00:29]} 55. e6 {[%clk 0:00:10]}  Kd6 {[%clk 0:00:27]} 56. Ke4 {[%clk 0:00:07]}  Rg7 {[%clk 0:00:21]} 57. Kf4 {[%clk 0:00:07]}  Rg8 {[%clk 0:00:20]} 58. Kg5 {[%clk 0:00:08]}  Ke7 {[%clk 0:00:20]} 59. Kh6 {[%clk 0:00:08]}  Kf6 {[%clk 0:00:18]} 60. Kh7 {[%clk 0:00:08]}  Rg7+ {[%clk 0:00:18]} 61. Kh6 {[%clk 0:00:08]}  Ra7 {[%clk 0:00:16]} 62. g5+ {[%clk 0:00:04]}  Kxf5 {[%clk 0:00:15]} 63. g7 {[%clk 0:00:05]}  Ra8 {[%clk 0:00:11]} 64. e7 {[%clk 0:00:03]}  Re8 {[%clk 0:00:03]} 0-1


[Site "https://www.chess.com"]

[Event "Titled Tuesday Blitz April 12 Early 2022"]
[White "Maksimenko, Viktor"]
[Black "Sapunov, Evgeny"]
[WhiteFideId "13710478"]
[BlackFideId "4126661"]
[WhiteElo "2269"]
[BlackElo "2470"]
[Result "1/2-1/2"]
[Round "11"]
[TimeControl "180+1"]
[Date "2022.04.12"]
[WhiteClock "0:00:16"]
[BlackClock "0:00:14"]

1. d4 {[%clk 0:03:00]}  Nf6 {[%clk 0:02:59]} 2. c4 {[%clk 0:03:01]}  g6 {[%clk 0:02:59]} 3. Nc3 {[%clk 0:02:57]}  Bg7 {[%clk 0:02:59]} 4. e4 {[%clk 0:02:57]}  O-O {[%clk 0:03:00]} 5. Nf3 {[%clk 0:02:57]}  d6 {[%clk 0:03:00]} 6. h3 {[%clk 0:02:56]}  a6 {[%clk 0:03:00]} 7. Be3 {[%clk 0:02:54]}  Nbd7 {[%clk 0:03:00]} 8. Be2 {[%clk 0:02:54]}  c5 {[%clk 0:03:00]} 9. O-O {[%clk 0:02:54]}  Rb8 {[%clk 0:02:55]} 10. Qc2 {[%clk 0:02:51]}  b6 {[%clk 0:02:53]} 11. Rad1 {[%clk 0:02:49]}  cxd4 {[%clk 0:02:52]} 12. Nxd4 {[%clk 0:02:49]}  Bb7 {[%clk 0:02:53]} 13. Rfe1 {[%clk 0:02:49]}  Rc8 {[%clk 0:02:53]} 14. Qb1 {[%clk 0:02:40]}  e6 {[%clk 0:02:53]} 15. Rd2 {[%clk 0:02:37]}  Qc7 {[%clk 0:02:52]} 16. Red1 {[%clk 0:02:37]}  Rfd8 {[%clk 0:02:52]} 17. Bd3 {[%clk 0:02:31]}  Ne5 {[%clk 0:02:52]} 18. b3 {[%clk 0:02:30]}  b5 {[%clk 0:02:44]} 19. Be2 {[%clk 0:02:23]}  bxc4 {[%clk 0:02:40]} 20. bxc4 {[%clk 0:02:24]}  Rb8 {[%clk 0:02:36]} 21. Rb2 {[%clk 0:02:16]}  Ba8 {[%clk 0:02:31]} 22. Rc1 {[%clk 0:01:41]}  Rxb2 {[%clk 0:02:16]} 23. Qxb2 {[%clk 0:01:42]}  Nxe4 {[%clk 0:02:14]} 24. Nxe4 {[%clk 0:01:42]}  Bxe4 {[%clk 0:02:14]} 25. Qd2 {[%clk 0:01:39]}  Rc8 {[%clk 0:02:07]} 26. Nb3 {[%clk 0:01:36]}  Qb7 {[%clk 0:01:31]} 27. Bf1 {[%clk 0:01:35]}  Bf8 {[%clk 0:01:19]} 28. Bd4 {[%clk 0:01:30]}  Nd7 {[%clk 0:01:14]} 29. Bb2 {[%clk 0:01:26]}  e5 {[%clk 0:01:11]} 30. Ba3 {[%clk 0:01:23]}  Qb6 {[%clk 0:01:06]} 31. Rd1 {[%clk 0:01:16]}  Nc5 {[%clk 0:00:57]} 32. Bxc5 {[%clk 0:01:13]}  dxc5 {[%clk 0:00:56]} 33. Re1 {[%clk 0:01:13]}  f5 {[%clk 0:00:48]} 34. Qc3 {[%clk 0:01:02]}  Bg7 {[%clk 0:00:45]} 35. Bd3 {[%clk 0:01:02]}  Ba8 {[%clk 0:00:44]} 36. Bf1 {[%clk 0:00:52]}  e4 {[%clk 0:00:44]} 37. Qe3 {[%clk 0:00:51]}  Bd4 {[%clk 0:00:42]} 38. Qf4 {[%clk 0:00:48]}  a5 {[%clk 0:00:41]} 39. Rd1 {[%clk 0:00:46]}  a4 {[%clk 0:00:41]} 40. Nc1 {[%clk 0:00:45]}  Qf6 {[%clk 0:00:37]} 41. Ne2 {[%clk 0:00:44]}  g5 {[%clk 0:00:34]} 42. Qd2 {[%clk 0:00:43]}  Rd8 {[%clk 0:00:34]} 43. Qc2 {[%clk 0:00:42]}  Bc6 {[%clk 0:00:29]} 44. Nc3 {[%clk 0:00:40]}  Bxc3 {[%clk 0:00:26]} 45. Rxd8+ {[%clk 0:00:39]}  Qxd8 {[%clk 0:00:26]} 46. Qxc3 {[%clk 0:00:40]}  Qd4 {[%clk 0:00:24]} 47. Qg3 {[%clk 0:00:40]}  h6 {[%clk 0:00:20]} 48. Qc7 {[%clk 0:00:37]}  Bd7 {[%clk 0:00:20]} 49. Qd8+ {[%clk 0:00:36]}  Kg7 {[%clk 0:00:20]} 50. Qe7+ {[%clk 0:00:36]}  Kg6 {[%clk 0:00:20]} 51. h4 {[%clk 0:00:33]}  gxh4 {[%clk 0:00:20]} 52. Qxh4 {[%clk 0:00:31]}  Be6 {[%clk 0:00:20]} 53. Qg3+ {[%clk 0:00:30]}  Kf6 {[%clk 0:00:20]} 54. Qh4+ {[%clk 0:00:29]}  Kg7 {[%clk 0:00:20]} 55. Qg3+ {[%clk 0:00:29]}  Kh7 {[%clk 0:00:20]} 56. Qc7+ {[%clk 0:00:28]}  Kg6 {[%clk 0:00:19]} 57. Qg3+ {[%clk 0:00:29]}  Kf7 {[%clk 0:00:19]} 58. Qc7+ {[%clk 0:00:28]}  Bd7 {[%clk 0:00:20]} 59. Qf4 {[%clk 0:00:24]}  Qf6 {[%clk 0:00:18]} 60. a3 {[%clk 0:00:22]}  Ke7 {[%clk 0:00:19]} 61. Qe3 {[%clk 0:00:20]}  Kd6 {[%clk 0:00:17]} 62. Qd2+ {[%clk 0:00:20]}  Kc6 {[%clk 0:00:17]} 63. Qa5 {[%clk 0:00:21]}  Qd4 {[%clk 0:00:17]} 64. Qxa4+ {[%clk 0:00:20]}  Kd6 {[%clk 0:00:17]} 65. Qa6+ {[%clk 0:00:21]}  Bc6 {[%clk 0:00:17]} 66. Qb6 {[%clk 0:00:20]}  e3 {[%clk 0:00:17]} 67. Qd8+ {[%clk 0:00:20]}  Bd7 {[%clk 0:00:17]} 68. Qf8+ {[%clk 0:00:19]}  Kc7 {[%clk 0:00:17]} 69. fxe3 {[%clk 0:00:19]}  Qxe3+ {[%clk 0:00:17]} 70. Kh1 {[%clk 0:00:19]}  Bc6 {[%clk 0:00:14]} 71. Qg7+ {[%clk 0:00:18]}  Kb6 {[%clk 0:00:15]} 72. Qb2+ {[%clk 0:00:17]}  Ka6 {[%clk 0:00:14]} 73. Qe2 {[%clk 0:00:12]}  Qxe2 {[%clk 0:00:08]} 74. Bxe2 {[%clk 0:00:13]}  f4 {[%clk 0:00:08]} 75. Kg1 {[%clk 0:00:11]}  Ka5 {[%clk 0:00:08]} 76. Bd1 {[%clk 0:00:11]}  Be4 {[%clk 0:00:08]} 77. Kf2 {[%clk 0:00:11]}  Bc6 {[%clk 0:00:07]} 78. g3 {[%clk 0:00:11]}  fxg3+ {[%clk 0:00:07]} 79. Kxg3 {[%clk 0:00:12]}  Be4 {[%clk 0:00:08]} 80. Kf4 {[%clk 0:00:12]}  Bg6 {[%clk 0:00:08]} 81. Ke5 {[%clk 0:00:12]}  Bf7 {[%clk 0:00:07]} 82. Kd6 {[%clk 0:00:12]}  Kb6 {[%clk 0:00:08]} 83. a4 {[%clk 0:00:11]}  Bxc4 {[%clk 0:00:07]} 84. a5+ {[%clk 0:00:12]}  Kxa5 {[%clk 0:00:06]} 85. Kxc5 {[%clk 0:00:12]}  Bf1 {[%clk 0:00:07]} 86. Kd4 {[%clk 0:00:13]}  Bh3 {[%clk 0:00:08]} 87. Ke3 {[%clk 0:00:13]}  Kb4 {[%clk 0:00:08]} 88. Kf4 {[%clk 0:00:12]}  Kc3 {[%clk 0:00:08]} 89. Kg3 {[%clk 0:00:12]}  Bf5 {[%clk 0:00:08]} 90. Bf3 {[%clk 0:00:13]}  Kd4 {[%clk 0:00:08]} 91. Kf4 {[%clk 0:00:13]}  Bg6 {[%clk 0:00:08]} 92. Bg2 {[%clk 0:00:13]}  Kd3 {[%clk 0:00:08]} 93. Kg3 {[%clk 0:00:14]}  Ke3 {[%clk 0:00:08]} 94. Kh4 {[%clk 0:00:14]}  Kf4 {[%clk 0:00:08]} 95. Ba8 {[%clk 0:00:14]}  Bf7 {[%clk 0:00:08]} 96. Bb7 {[%clk 0:00:14]}  Kf5 {[%clk 0:00:09]} 97. Ba8 {[%clk 0:00:14]}  Kf6 {[%clk 0:00:09]} 98. Bb7 {[%clk 0:00:15]}  Bg6 {[%clk 0:00:09]} 99. Ba8 {[%clk 0:00:15]}  Bf7 {[%clk 0:00:09]} 100. Bb7 {[%clk 0:00:15]}  Kg7 {[%clk 0:00:10]} 101. Ba8 {[%clk 0:00:15]}  Bg6 {[%clk 0:00:11]} 102. Bc6 {[%clk 0:00:15]}  Bf7 {[%clk 0:00:12]} 103. Ba8 {[%clk 0:00:16]}  Bg6 {[%clk 0:00:13]} 104. Bb7 {[%clk 0:00:16]}  Bf7 {[%clk 0:00:14]} 105. Ba8 {[%clk 0:00:16]} 1/2-1/2


[Site "https://www.chess.com"]

[Event "Titled Tuesday Blitz April 12 Early 2022"]
[White "Matlakov, Maxim"]
[Black "Mikhailov, Viacheslav"]
[WhiteFideId "4168003"]
[BlackFideId "4187369"]
[WhiteElo "2669"]
[BlackElo "2381"]
[Result "1-0"]
[Round "11"]
[TimeControl "180+1"]
[Date "2022.04.12"]
[WhiteClock "0:00:15"]
[BlackClock "0:00:01"]

1. e4 {[%clk 0:02:46]}  d6 {[%clk 0:02:59]} 2. d4 {[%clk 0:02:45]}  Nf6 {[%clk 0:03:00]} 3. Bd3 {[%clk 0:02:45]}  g6 {[%clk 0:03:00]} 4. Nf3 {[%clk 0:02:45]}  Bg7 {[%clk 0:03:00]} 5. O-O {[%clk 0:02:45]}  O-O {[%clk 0:03:01]} 6. c3 {[%clk 0:02:45]}  Bg4 {[%clk 0:03:01]} 7. Nbd2 {[%clk 0:02:45]}  c5 {[%clk 0:03:00]} 8. h3 {[%clk 0:02:45]}  Bxf3 {[%clk 0:03:00]} 9. Nxf3 {[%clk 0:02:46]}  cxd4 {[%clk 0:03:00]} 10. cxd4 {[%clk 0:02:46]}  Nc6 {[%clk 0:03:01]} 11. Be3 {[%clk 0:02:44]}  Nd7 {[%clk 0:03:01]} 12. Qd2 {[%clk 0:02:42]}  a6 {[%clk 0:02:59]} 13. Rac1 {[%clk 0:02:39]}  Rc8 {[%clk 0:02:59]} 14. Bc4 {[%clk 0:02:36]}  Qa5 {[%clk 0:02:44]} 15. Qe2 {[%clk 0:02:17]}  e5 {[%clk 0:02:28]} 16. dxe5 {[%clk 0:02:15]}  Ndxe5 {[%clk 0:02:17]} 17. Nxe5 {[%clk 0:02:15]}  dxe5 {[%clk 0:02:16]} 18. Bd5 {[%clk 0:02:11]}  Nd4 {[%clk 0:02:10]} 19. Qg4 {[%clk 0:01:56]}  Rxc1 {[%clk 0:02:03]} 20. Rxc1 {[%clk 0:01:57]}  h5 {[%clk 0:02:00]} 21. Qd1 {[%clk 0:01:53]}  Kh7 {[%clk 0:01:50]} 22. Rc4 {[%clk 0:01:14]}  f5 {[%clk 0:01:25]} 23. b4 {[%clk 0:01:14]}  Qd8 {[%clk 0:01:19]} 24. Bxb7 {[%clk 0:00:54]}  f4 {[%clk 0:01:17]} 25. Bxd4 {[%clk 0:00:53]}  exd4 {[%clk 0:01:18]} 26. Qf3 {[%clk 0:00:36]}  d3 {[%clk 0:00:56]} 27. Bd5 {[%clk 0:00:36]}  d2 {[%clk 0:00:55]} 28. Qd3 {[%clk 0:00:36]}  f3 {[%clk 0:00:53]} 29. Qxd2 {[%clk 0:00:36]}  fxg2 {[%clk 0:00:50]} 30. Kxg2 {[%clk 0:00:34]}  Be5 {[%clk 0:00:43]} 31. Rc6 {[%clk 0:00:26]}  Bf4 {[%clk 0:00:40]} 32. Qd3 {[%clk 0:00:26]}  Qg5+ {[%clk 0:00:40]} 33. Kh1 {[%clk 0:00:26]}  Be5 {[%clk 0:00:39]} 34. Qe3 {[%clk 0:00:21]}  Qh4 {[%clk 0:00:20]} 35. Kg2 {[%clk 0:00:21]}  Qe7 {[%clk 0:00:14]} 36. Rxa6 {[%clk 0:00:21]}  Qg7 {[%clk 0:00:11]} 37. Ra7 {[%clk 0:00:19]}  Bc7 {[%clk 0:00:08]} 38. Qc5 {[%clk 0:00:18]}  Rc8 {[%clk 0:00:07]} 39. Be6 {[%clk 0:00:15]}  Qe7 {[%clk 0:00:01]} 40. Qxe7+ {[%clk 0:00:15]} 1-0


[Site "https://www.chess.com"]

[Event "Titled Tuesday Blitz April 12 Early 2022"]
[White "Mekhitarian, Krikor Sevag"]
[Black "Biletskiy, Danylo"]
[WhiteFideId "2107660"]
[BlackFideId "14155419"]
[WhiteElo "2598"]
[BlackElo "2087"]
[Result "1-0"]
[Round "11"]
[TimeControl "180+1"]
[Date "2022.04.13"]
[WhiteClock "0:00:04"]
[BlackClock "0:00:03"]

1. Nf3 {[%clk 0:02:52]}  d5 {[%clk 0:02:56]} 2. c4 {[%clk 0:02:51]}  c6 {[%clk 0:02:55]} 3. e3 {[%clk 0:02:50]}  Nf6 {[%clk 0:02:55]} 4. Nc3 {[%clk 0:02:49]}  g6 {[%clk 0:02:55]} 5. b3 {[%clk 0:02:49]}  Bg7 {[%clk 0:02:55]} 6. Bb2 {[%clk 0:02:49]}  O-O {[%clk 0:02:55]} 7. d4 {[%clk 0:02:49]}  Nbd7 {[%clk 0:02:50]} 8. Be2 {[%clk 0:02:46]}  b6 {[%clk 0:02:51]} 9. O-O {[%clk 0:02:46]}  Bb7 {[%clk 0:02:51]} 10. Rc1 {[%clk 0:02:41]}  Re8 {[%clk 0:02:51]} 11. h3 {[%clk 0:02:38]}  Rc8 {[%clk 0:02:49]} 12. Bd3 {[%clk 0:02:28]}  e6 {[%clk 0:02:47]} 13. Qe2 {[%clk 0:02:23]}  c5 {[%clk 0:02:46]} 14. cxd5 {[%clk 0:02:18]}  Nxd5 {[%clk 0:02:45]} 15. Nxd5 {[%clk 0:02:18]}  exd5 {[%clk 0:02:44]} 16. Ba6 {[%clk 0:02:06]}  Qc7 {[%clk 0:02:41]} 17. Rfd1 {[%clk 0:02:05]}  Nf6 {[%clk 0:02:38]} 18. dxc5 {[%clk 0:01:55]}  bxc5 {[%clk 0:02:38]} 19. Qb5 {[%clk 0:01:17]}  Bxa6 {[%clk 0:02:31]} 20. Qxa6 {[%clk 0:01:18]}  Red8 {[%clk 0:02:32]} 21. Be5 {[%clk 0:01:14]}  Qb6 {[%clk 0:02:28]} 22. Qe2 {[%clk 0:01:11]}  Ne4 {[%clk 0:02:25]} 23. Bxg7 {[%clk 0:01:08]}  Kxg7 {[%clk 0:02:25]} 24. Ne5 {[%clk 0:00:41]}  Qf6 {[%clk 0:02:18]} 25. Ng4 {[%clk 0:00:41]}  Qd6 {[%clk 0:02:04]} 26. Qb2+ {[%clk 0:00:40]}  d4 {[%clk 0:02:05]} 27. exd4 {[%clk 0:00:38]}  cxd4 {[%clk 0:02:05]} 28. Rxc8 {[%clk 0:00:37]}  Rxc8 {[%clk 0:02:01]} 29. Rxd4 {[%clk 0:00:32]}  Rc1+ {[%clk 0:02:01]} 30. Qxc1 {[%clk 0:00:32]}  Qxd4 {[%clk 0:02:01]} 31. Ne3 {[%clk 0:00:29]}  Nc3 {[%clk 0:01:58]} 32. Qb2 {[%clk 0:00:23]}  Kg8 {[%clk 0:01:27]} 33. g3 {[%clk 0:00:23]}  h5 {[%clk 0:01:25]} 34. Qc2 {[%clk 0:00:22]}  Ne4 {[%clk 0:01:18]} 35. Kg2 {[%clk 0:00:19]}  h4 {[%clk 0:01:07]} 36. gxh4 {[%clk 0:00:20]}  Nf6 {[%clk 0:01:05]} 37. Qc8+ {[%clk 0:00:18]}  Kg7 {[%clk 0:01:05]} 38. Qc4 {[%clk 0:00:19]}  Qd2 {[%clk 0:00:57]} 39. a4 {[%clk 0:00:17]}  Nh5 {[%clk 0:00:51]} 40. b4 {[%clk 0:00:17]}  Qd7 {[%clk 0:00:46]} 41. b5 {[%clk 0:00:15]}  Qb7+ {[%clk 0:00:44]} 42. Qc6 {[%clk 0:00:14]}  Qe7 {[%clk 0:00:41]} 43. Qc4 {[%clk 0:00:08]}  Qb7+ {[%clk 0:00:40]} 44. Kg1 {[%clk 0:00:08]}  Qf3 {[%clk 0:00:31]} 45. Qd4+ {[%clk 0:00:07]}  Kh7 {[%clk 0:00:27]} 46. Qg4 {[%clk 0:00:06]}  Qb7 {[%clk 0:00:21]} 47. Kh2 {[%clk 0:00:03]}  Qc7+ {[%clk 0:00:20]} 48. Kg1 {[%clk 0:00:03]}  Qc1+ {[%clk 0:00:20]} 49. Qd1 {[%clk 0:00:02]}  Qc8 {[%clk 0:00:18]} 50. Qf3 {[%clk 0:00:03]}  Qc1+ {[%clk 0:00:16]} 51. Kg2 {[%clk 0:00:03]}  Qc7 {[%clk 0:00:15]} 52. Ng4 {[%clk 0:00:02]}  Qe7 {[%clk 0:00:14]} 53. Qe3 {[%clk 0:00:01]}  Qxh4 {[%clk 0:00:12]} 54. Qf3 {[%clk 0:00:01]}  Qe7 {[%clk 0:00:11]} 55. a5 {[%clk 0:00:02]}  Qc7 {[%clk 0:00:10]} 56. b6 {[%clk 0:00:02]}  axb6 {[%clk 0:00:11]} 57. a6 {[%clk 0:00:02]}  f5 {[%clk 0:00:10]} 58. Ne3 {[%clk 0:00:02]}  Nf4+ {[%clk 0:00:10]} 59. Kg1 {[%clk 0:00:02]}  Qc1+ {[%clk 0:00:09]} 60. Kh2 {[%clk 0:00:03]}  Qc7 {[%clk 0:00:10]} 61. Kg1 {[%clk 0:00:02]}  Qc1+ {[%clk 0:00:08]} 62. Nf1 {[%clk 0:00:03]}  Ne6 {[%clk 0:00:07]} 63. Qb7+ {[%clk 0:00:03]}  Kh6 {[%clk 0:00:07]} 64. a7 {[%clk 0:00:04]}  Ng5 {[%clk 0:00:05]} 65. Qg2 {[%clk 0:00:03]}  Qa1 {[%clk 0:00:04]} 66. a8=Q {[%clk 0:00:04]}  Nxh3+ {[%clk 0:00:04]} 67. Kh2 {[%clk 0:00:04]}  Qe5+ {[%clk 0:00:04]} 68. Qg3 {[%clk 0:00:04]}  Qxg3+ {[%clk 0:00:03]} 69. Kxg3 {[%clk 0:00:04]} 1-0


[Site "https://www.chess.com"]

[Event "Titled Tuesday Blitz April 12 Early 2022"]
[White "Mirzoev, Azer"]
[Black "Coto Mederos, Michel"]
[WhiteFideId "13400304"]
[BlackFideId "3508528"]
[WhiteElo "2525"]
[BlackElo "2427"]
[Result "1-0"]
[Round "11"]
[TimeControl "180+1"]
[Date "2022.04.12"]
[WhiteClock "0:00:06"]
[BlackClock "0:00:03"]

1. d4 {[%clk 0:03:00]}  d5 {[%clk 0:02:58]} 2. Nf3 {[%clk 0:02:58]}  Nf6 {[%clk 0:02:56]} 3. Bf4 {[%clk 0:02:59]}  c5 {[%clk 0:02:56]} 4. e3 {[%clk 0:02:59]}  Nc6 {[%clk 0:02:56]} 5. c3 {[%clk 0:02:58]}  Qb6 {[%clk 0:02:55]} 6. Qc2 {[%clk 0:02:50]}  e6 {[%clk 0:02:31]} 7. Nbd2 {[%clk 0:02:49]}  Be7 {[%clk 0:02:29]} 8. Bd3 {[%clk 0:02:44]}  O-O {[%clk 0:02:24]} 9. O-O {[%clk 0:02:44]}  Bd7 {[%clk 0:02:23]} 10. Ne5 {[%clk 0:02:42]}  h6 {[%clk 0:02:11]} 11. Qb3 {[%clk 0:02:30]}  c4 {[%clk 0:02:04]} 12. Qxb6 {[%clk 0:02:29]}  axb6 {[%clk 0:02:05]} 13. Bc2 {[%clk 0:02:28]}  b5 {[%clk 0:02:03]} 14. a3 {[%clk 0:02:28]}  Be8 {[%clk 0:01:49]} 15. h3 {[%clk 0:02:25]}  Nd7 {[%clk 0:01:46]} 16. Nxd7 {[%clk 0:02:23]}  Bxd7 {[%clk 0:01:46]} 17. e4 {[%clk 0:02:23]}  Bg5 {[%clk 0:01:25]} 18. Bxg5 {[%clk 0:02:22]}  hxg5 {[%clk 0:01:26]} 19. f4 {[%clk 0:02:14]}  gxf4 {[%clk 0:01:11]} 20. Rxf4 {[%clk 0:02:08]}  b4 {[%clk 0:01:10]} 21. exd5 {[%clk 0:02:08]}  exd5 {[%clk 0:01:10]} 22. Bf5 {[%clk 0:02:08]}  bxc3 {[%clk 0:00:55]} 23. bxc3 {[%clk 0:02:06]}  Bxf5 {[%clk 0:00:45]} 24. Rxf5 {[%clk 0:02:05]}  Ra5 {[%clk 0:00:43]} 25. Nf1 {[%clk 0:01:58]}  g6 {[%clk 0:00:40]} 26. Rf6 {[%clk 0:01:55]}  Rfa8 {[%clk 0:00:39]} 27. Ne3 {[%clk 0:01:53]}  Ne7 {[%clk 0:00:32]} 28. Nc2 {[%clk 0:01:49]}  Nf5 {[%clk 0:00:18]} 29. Rb1 {[%clk 0:01:45]}  b5 {[%clk 0:00:11]} 30. Rb6 {[%clk 0:01:40]}  Ng3 {[%clk 0:00:11]} 31. Re1 {[%clk 0:01:22]}  Ne4 {[%clk 0:00:11]} 32. Re3 {[%clk 0:01:23]}  R8a6 {[%clk 0:00:10]} 33. Rb8+ {[%clk 0:01:22]}  Kg7 {[%clk 0:00:10]} 34. Nb4 {[%clk 0:01:13]}  Rd6 {[%clk 0:00:08]} 35. Nc2 {[%clk 0:00:51]}  Rf6 {[%clk 0:00:07]} 36. Rb7 {[%clk 0:00:38]}  Rf2 {[%clk 0:00:06]} 37. Rxe4 {[%clk 0:00:38]}  Rxc2 {[%clk 0:00:05]} 38. Ree7 {[%clk 0:00:38]}  Rxc3 {[%clk 0:00:04]} 39. Rxf7+ {[%clk 0:00:38]}  Kh6 {[%clk 0:00:05]} 40. Kh2 {[%clk 0:00:34]}  Kg5 {[%clk 0:00:03]} 41. Rfd7 {[%clk 0:00:28]}  Raxa3 {[%clk 0:00:03]} 42. Rxd5+ {[%clk 0:00:27]}  Kh6 {[%clk 0:00:03]} 43. Rbxb5 {[%clk 0:00:23]}  Rc2 {[%clk 0:00:04]} 44. Rbc5 {[%clk 0:00:16]}  Raa2 {[%clk 0:00:04]} 45. Rg5 {[%clk 0:00:15]}  c3 {[%clk 0:00:05]} 46. Rg3 {[%clk 0:00:15]}  Kh7 {[%clk 0:00:02]} 47. Rc7+ {[%clk 0:00:11]}  Kh6 {[%clk 0:00:02]} 48. Rc6 {[%clk 0:00:10]}  Rd2 {[%clk 0:00:02]} 49. Rcxg6+ {[%clk 0:00:09]}  Kh7 {[%clk 0:00:03]} 50. Rc6 {[%clk 0:00:09]}  Rxd4 {[%clk 0:00:03]} 51. Rgxc3 {[%clk 0:00:07]}  Rdd2 {[%clk 0:00:03]} 52. Rg3 {[%clk 0:00:07]}  Re2 {[%clk 0:00:03]} 53. Rg4 {[%clk 0:00:07]}  Rf2 {[%clk 0:00:02]} 54. Rc5 {[%clk 0:00:07]}  Rfe2 {[%clk 0:00:03]} 55. Rh5# {[%clk 0:00:06]} 1-0


[Site "https://www.chess.com"]

[Event "Titled Tuesday Blitz April 12 Early 2022"]
[White "Mohammadian, Mohammad"]
[Black "Larrea, Manuel"]
[WhiteFideId "12566055"]
[BlackFideId "3000508"]
[WhiteElo "1544"]
[BlackElo "2233"]
[Result "0-1"]
[Round "11"]
[TimeControl "180+1"]
[Date "2022.04.13"]
[WhiteClock "0:00:40"]
[BlackClock "0:00:35"]

1. e4 {[%clk 0:03:00]}  c5 {[%clk 0:02:58]} 2. Nf3 {[%clk 0:03:00]}  Nc6 {[%clk 0:02:58]} 3. d4 {[%clk 0:03:00]}  cxd4 {[%clk 0:02:58]} 4. Nxd4 {[%clk 0:03:00]}  Nf6 {[%clk 0:02:58]} 5. Nc3 {[%clk 0:02:59]}  e5 {[%clk 0:02:58]} 6. Nb3 {[%clk 0:02:58]}  d6 {[%clk 0:02:57]} 7. Be2 {[%clk 0:02:55]}  Be7 {[%clk 0:02:55]} 8. Be3 {[%clk 0:02:55]}  O-O {[%clk 0:02:55]} 9. O-O {[%clk 0:02:55]}  a5 {[%clk 0:02:55]} 10. a4 {[%clk 0:02:50]}  Nb4 {[%clk 0:02:53]} 11. f3 {[%clk 0:02:41]}  Be6 {[%clk 0:02:52]} 12. Qd2 {[%clk 0:02:34]}  d5 {[%clk 0:02:44]} 13. exd5 {[%clk 0:02:33]}  Nbxd5 {[%clk 0:02:43]} 14. Nxd5 {[%clk 0:02:33]}  Nxd5 {[%clk 0:02:43]} 15. Bf2 {[%clk 0:02:31]}  Nb4 {[%clk 0:02:23]} 16. Qxd8 {[%clk 0:02:26]}  Rfxd8 {[%clk 0:02:18]} 17. Rfc1 {[%clk 0:02:19]}  Nxc2 {[%clk 0:02:14]} 18. Rxc2 {[%clk 0:02:14]}  Bxb3 {[%clk 0:02:13]} 19. Rc7 {[%clk 0:02:14]}  Bb4 {[%clk 0:02:06]} 20. Rxb7 {[%clk 0:02:07]}  g6 {[%clk 0:01:53]} 21. Bb5 {[%clk 0:02:01]}  Rd2 {[%clk 0:01:45]} 22. Rc1 {[%clk 0:01:49]}  Rxb2 {[%clk 0:01:32]} 23. h3 {[%clk 0:01:46]}  Rd8 {[%clk 0:01:27]} 24. Rcc7 {[%clk 0:01:42]}  Rdd2 {[%clk 0:01:15]} 25. Bb6 {[%clk 0:01:33]}  Rxg2+ {[%clk 0:01:10]} 26. Kf1 {[%clk 0:01:25]}  Rh2 {[%clk 0:01:09]} 27. Rb8+ {[%clk 0:01:22]}  Kg7 {[%clk 0:01:06]} 28. Kg1 {[%clk 0:01:08]}  Rhg2+ {[%clk 0:01:04]} 29. Kf1 {[%clk 0:01:07]}  Rgd2 {[%clk 0:01:02]} 30. Rc1 {[%clk 0:00:56]}  h5 {[%clk 0:00:52]} 31. Be8 {[%clk 0:00:54]}  Bc4+ {[%clk 0:00:36]} 32. Kg1 {[%clk 0:00:44]}  Rg2+ {[%clk 0:00:35]} 33. Kh1 {[%clk 0:00:41]}  Rh2+ {[%clk 0:00:35]} 34. Kg1 {[%clk 0:00:40]}  Rbg2# {[%clk 0:00:35]} 0-1


[Site "https://www.chess.com"]